Cogmind - Beta 13 X1 @@@ ROGUE MODE // 2023.09.23 @ 12:00:54 Player: DuckBoy Result: Destroyed by D-53 Grenadier with Mini Grenade Launcher Performance ------------- Evolutions (0) 0 Regions Visited (2) 400 Robots Destroyed (12) 60 Value Destroyed (388) 388 Prototype IDs (0) 0 Alien Tech Used (0) 0 Bonus (0) 0 TOTAL SCORE: 848 Bonus ------- None Cogmind --------- Core Integrity 0/250 Matter 300/300 Energy 45/100 System Corruption 4% Temperature Warm (117) Movement Core (250) Ox4 Location -10/Mines Parts ------- > --- POWER (1) -------- (None) > --- PROPULSION (2) --- (None) > --- UTILITY (2) ------ Medium Storage Unit > --- WEAPON (2) ------- Medium Laser Particle Gun > --- INVENTORY (10) --- Ion Engine Light Nuclear Core Compact Wheel Huge Storage Unit EM Pulse Gun EM Pulse Gun EM Pulse Gun EM Pulse Gun Peak State ------------ > --- POWER ------------ Ion Engine > --- PROPULSION ------- Light Treads Light Treads > --- UTILITY ---------- Improved Heat Sink Medium Storage Unit > --- WEAPON ----------- Medium Laser Light Assault Rifle > --- INVENTORY -------- Ion Engine Light Nuclear Core Compact Wheel Compact Wheel Huge Storage Unit EM Pulse Gun EM Pulse Gun EM Pulse Gun EM Pulse Gun [Rating: 10] Favorites ----------- Power Ion Engine Engine Ion Engine Propulsion Light Treads Treads Light Treads Wheel Compact Wheel Utility Medium Storage Unit Device Improved Heat Sink Storage Medium Storage Unit Weapon Medium Laser Energy Gun Medium Laser Ballistic Gun Light Assault Rifle Build | -11 -10 -10 ------- Run | Jun Mat Min Slots Evolved . | . . . Power . | . . . Propulsion . | . . . Utility . | . . . Weapon . | . . . Parts Attached 14 | 6 5 3 Power 2 | 1 . 1 Engine 2 | 1 . 1 Core . | . . . Reactor . | . . . Propulsion 3 | 2 . 1 Treads 2 | 2 . . Leg . | . . . Wheel 1 | . . 1 Hover . | . . . Flight . | . . . Utility 3 | 1 2 . Device 1 | . 1 . Storage 2 | 1 1 . Processor . | . . . Hackware . | . . . Protection . | . . . Artifact . | . . . Weapon 6 | 2 3 1 Energy Gun 5 | 1 3 1 Energy Cannon . | . . . Ballistic Gun 1 | 1 . . Ballistic Cannon . | . . . Launcher . | . . . Special Weapon . | . . . Impact Weapon . | . . . Slashing Weapon . | . . . Piercing Weapon . | . . . Special Melee Weapon . | . . . Unidentified Prototypes . | . . . Parts Lost 6 | . . 6 Power 1 | . . 1 Propulsion 3 | . . 3 Utility 1 | . . 1 Weapon 1 | . . 1 Highest Loss Streak 3 | . . 3 To Critical Strikes . | . . . Average Slot Usage (%) 94 | . 96 85 Engine 13 | . 14 9 Treads 26 | . 28 21 Device 9 | . 10 7 Storage 14 | . 14 14 Energy Gun 18 | . 16 28 Ballistic Gun 9 | . 11 . Naked Turns . | . . . Heaviest Build 20 | 13 20 20 Greatest Support 40 | 40 40 40 Greatest Overweight (x) . | . . . Average Overweight (x) . | . . . Largest Inventory Capacity 10 | 8 10 10 Average Capacity 9 | 6 9 10 Most Carried 10 | 4 10 10 Average Carried 7 | 2 8 9 Final Capacity 10 | 8 10 10 Final Carried 10 | 4 10 8 Class Distribution -------------------- 100% | Mutant Dominant Class ---------------- Mutant | -10/Materials Mutant | -10/Mines Resources | -11 -10 -10 ----------- Run | Jun Mat Min Matter Collected 354 | 196 132 26 Remotely . | . . . Salvage Created 520 | . 400 120 Parts 25 | . 21 4 Haulers Intercepted 1 | . 1 . Recyclers Shooed 1 | . 1 . Parts Field Recycled . | . . . Retrieved Matter . | . . . Parts Self-Destructed . | . . . Prevented . | . . . Kills | -11 -10 -10 ------- Run | Jun Mat Min Combat Hostiles Destroyed 11 | . 6 5 Guns 11 | . 6 5 Classes Destroyed 6 | . 4 2 Hauler 1 | . 1 . Recycler 1 | . 1 . Watcher 1 | . 1 . Grunt 8 | . 6 2 Demolisher 1 | . . 1 Assembled 2 | . . 2 Best Kill Streak 2 | . 2 2 Combat Bots Only 2 | . 2 2 Max Kills in Single Turn 1 | . 1 1 Gunslinging . | . . . Exploded . | . . . Melee . | . . . Uniques/NPCs Destroyed . | . . . Combat | -11 -10 -10 -------- Run | Jun Mat Min Damage Taken 1051 | . 332 719 Core 304 | . 46 258 Absorbed by Shields . | . . . Core Remaining (%) 100 | 100 . . Volleys Fired 55 | . 37 18 Largest 2 | . 2 2 Hottest 115 | . 100 115 Shots Fired 110 | . 74 36 Gun 110 | . 74 36 Cannon . | . . . Launcher . | . . . Special . | . . . Kinetic 32 | . 32 . Thermal 78 | . 42 36 Explosive . | . . . Electromagnetic . | . . . Robot Hit Streak 9 | . 9 5 Robot Miss Streak 7 | . 7 5 Penetration Max . | . . . Secondary Targets 4 | . 3 1 Max Gunslinging Chain 1 | . 1 1 Shots Hit Robots 66 | . 46 20 Core Hits 31 | . 20 11 Critical Kills . | . . . Critical Parts Destroyed . | . . . Critical Strikes 7 | . 2 5 Burn 7 | . 2 5 Melee Attacks . | . . . Impact . | . . . Slashing . | . . . Piercing . | . . . Sneak Attacks . | . . . Combat Hostiles . | . . . Follow-up Attacks . | . . . Damage Inflicted 814 | 6 544 264 Guns 808 | . 544 264 Cannons . | . . . Explosions . | . . . Melee . | . . . Ramming 6 | 6 . . Kinetic 134 | . 134 . Thermal 674 | . 410 264 Explosive . | . . . Electromagnetic . | . . . Impact . | . . . Slashing . | . . . Piercing . | . . . Highest Corruption 4 | . . 4 Average Corruption 4 | . . 4 Corruption Purged . | . . . Corruption Blocked . | . . . Overload Shots . | . . . Overflow Damage . | . . . Projectiles . | . . . Explosions . | . . . Melee . | . . . Knockbacks . | . . . Impact . | . . . Kinetic . | . . . Secondary . | . . . Self-Inflicted Damage . | . . . Shots . | . . . Rammed 4 | 3 . 1 Targets Rammed 4 | 3 . 1 Kicked . | . . . Crushed . | . . . Highest Temperature 180 | . 180 175 Average Temperature 49 | . 42 59 Received Heat Transfer 294 | . 180 114 Siege Activations . | . . . Robots Corrupted . | . . . Combat Hostiles . | . . . Parts Fried . | . . . Impact Corruptions . | . . . Robots Melted . | . . . Combat Hostiles . | . . . Parts Melted 1 | . 1 . Heat Transferred 2479 | . 1369 1110 Parts Sabotaged . | . . . Parts Stolen . | . . . Parts Stripped . | . . . Power Chain Reactions . | . . . Missiles Intercepted . | . . . Alert | -11 -10 -10 ------- Run | Jun Mat Min Peak Influence 223 | . 223 71 Initial 21 | . . 21 Average 61 | . 74 54 Maximum Alert Level 1 | . 1 . Low Security (%) 97 | 100 97 100 Level 1 2 | . 2 . Level 2 . | . . . Level 3 . | . . . Level 4 . | . . . Level 5 . | . . . High Security . | . . . Max Security . | . . . Squads Dispatched 1 | . 1 . Investigation . | . . . Extermination . | . . . Reinforcement 1 | . 1 . Assault . | . . . Garrison . | . . . Intercept . | . . . Searches Triggered . | . . . Construction Impeded . | . . . Haulers Reinforced . | . . . Active Scanning Responses . | . . . Cargo Convoy Interrupts . | . . . Stealth | -11 -10 -10 --------- Run | Jun Mat Min Distress Signals 1 | . 1 . Communications Jammed . | . . . Distress Signals . | . . . Times Spotted 21 | . 10 11 Peak Tracking Total 7 | . 3 7 Tactical Retreats 1 | . . 1 Traps | -11 -10 -10 ------- Run | Jun Mat Min Traps Triggered . | . . . Indirectly . | . . . Trap Hack Attempts . | . . . Triggered . | . . . Disarmed . | . . . Reprogrammed . | . . . Reused . | . . . Traps Extracted . | . . . Installed . | . . . Triggered . | . . . Machines | -11 -10 -10 ---------- Run | Jun Mat Min Machines Disabled . | . . . Max in Single Turn . | . . . Machines Repaired . | . . . Machines Sabotaged . | . . . Overloaded Fab Kills . | . . . Hacking | -11 -10 -10 --------- Run | Jun Mat Min Machines Accessed 4 | . 4 . Terminals 4 | . 4 . Fabricators . | . . . Repair Stations . | . . . Recycling Units . | . . . Scanalyzers . | . . . Garrison Access . | . . . Total Hacks 11 | . 11 . Successful 4 | . 4 . Failed 7 | . 7 . Catastrophic 1 | . 1 . Database Lockouts . | . . . Manual 11 | . 11 . Terminals 11 | . 11 . Fabricators . | . . . Repair Stations . | . . . Recycling Units . | . . . Scanalyzers . | . . . Garrison Access . | . . . Terminal Hacks 2 | . 2 . Robot Schematic 2 | . 2 . Fabricator Hacks . | . . . Repair Station Hacks . | . . . Recycling Unit Hacks . | . . . Scanalyzer . | . . . Garrison Access Hacks . | . . . Unauthorized Hacks 2 | . 2 . Terminals 2 | . 2 . Botnet 2 | . 2 . Fabricators . | . . . Repair Stations . | . . . Recycling Units . | . . . Scanalyzers . | . . . Garrison Access . | . . . Data Cores Recovered . | . . . Used . | . . . Hacking Detections 2 | . 2 . Full Trace Events 1 | . 1 . Feedback Events . | . . . Feedback Blocked . | . . . Robot Schematics Acquired 2 | . 2 . Robots Built . | . . . Authchips . | . . . Time . | . . . Total Robot Build Rating . | . . . Part Schematics Acquired . | . . . Parts Built . | . . . Authchips . | . . . Time . | . . . Total Part Build Rating . | . . . Parts Repaired . | . . . Time . | . . . Parts Recycled . | . . . Recycled Matter . | . . . Retrieved Matter . | . . . Retrieved Components . | . . . Parts Scanalyzed . | . . . Part Schematics Acquired . | . . . Parts Damaged . | . . . Bothacking | -11 -10 -10 ------------ Run | Jun Mat Min Used RIF Installer . | . . . Robots Hacked . | . . . Non-combat . | . . . Combat . | . . . Robot Hacks Applied . | . . . Relay Couplers Released . | . . . Fabnet Peak Effective % . | . . . Robots Rewired . | . . . Allies Hacked . | . . . Hacks Repelled . | . . . Allies | -11 -10 -10 -------- Run | Jun Mat Min Total Allies . | . . . Largest Group . | . . . Highest-Rated Group . | . . . Highest-Rated Ally . | . . . Total Orders . | . . . Ally Attacks . | . . . Total Damage . | . . . Kills . | . . . Allies Corrupted . | . . . Allies Melted . | . . . Intel | -11 -10 -10 ------- Run | Jun Mat Min Robot Analysis Total . | . . . Derelict Logs Recovered . | . . . Drone Launches . | . . . Drone Recoveries . | . . . Exploration | -11 -10 -10 ------------- Run | Jun Mat Min Turns Passed 815 | 102 590 123 Spaces Moved 384 | 55 287 42 Core 2 | 2 . . Treads 365 | 53 287 25 Legs . | . . . Wheels 17 | . . 17 Hover . | . . . Flight . | . . . Fastest Speed 50 | 50 160 100 Average Speed 156 | 156 160 135 Slowest Speed 160 | 160 160 160 Overloaded Moves . | . . . Propulsion Burnouts . | . . . Robots Hopped . | . . . Cave-ins Triggered . | . . . Exploration Rate (%) 25 | 4 56 16 Regions Visited 2 Branch Regions 1 Pre-discovered Areas . | . . . Known Exits Taken . | . . . Unknown Exits Taken 2 | 1 1 . Scrap Searched . | . . . Spaces Dug . | . . . Terrain Destroyed . | . . . Melee . | . . . Projectile . | . . . AOE . | . . . Terrain Rammed . | . . . Walls Destroyed . | . . . Machines Disabled . | . . . Actions | -11 -10 -10 --------- Run | Jun Mat Min Total 491 | 67 350 74 Wait 22 | . 13 9 Move 383 | 55 286 42 Hop . | . . . Pick Up 10 | 4 6 . Fast Attach 9 | 6 3 . Attach 2 | . . 2 Detach . | . . . Swap 3 | . 2 1 Drop 4 | . 3 1 Fire 55 | . 37 18 Melee . | . . . Ram . | . . . Kick . | . . . Crush 3 | 2 . 1 Escape Stasis . | . . . Rewire . | . . . Trap . | . . . Miscellaneous . | . . . Route ------- -11/Junkyard -10/Materials (discovered 3 exits: [*Mat x2] / [*Min]) -10/Mines (discovered 1 exit: [*Mat]) History --------- Turn | Location | Event 55 | -11/Junkyard | Discovered new exit (range 16) 103 | -11/Junkyard | Entered Materials 277 | -10/Materials | Discovered new exit (range 4) 315 | -10/Materials | Build established: Mutant 498 | -10/Materials | Discovered new exit (range 4) 680 | -10/Materials | Discovered new exit (range 8) 693 | -10/Materials | Entered Mines 738 | -10/Mines | Assembled infested the area 789 | -10/Mines | Discovered new exit (range 10) 803 | -10/Mines | Lost 3 parts (1p1n1u) 804 | -10/Mines | Core integrity fell below 50% 813 | -10/Mines | Core integrity fell below 20% 816 | -10/Mines | Destroyed by D-53 Grenadier with Mini Grenade Launcher Last Messages --------------- 00777_ Acquired 10 matter. 00789_ EXIT=FOUND 00803_ D-53 Grenadier suffers critical hit (Burn). 00803_ K-01 Serf collects debris. 00804_ U-05 Engineer builds a Wall. 00805_ Med. Laser destroyed. 00807_ The unstable cave ceiling collapses. 00809_ Lgt. Treads destroyed. 00809_ U-05 Engineer lays Concrete. 00810_ D-53 Grenadier suffers critical hit (Burn). 00810_ D-53 Grenadier destroyed. 00810_ U-05 Engineer builds a Wall. 00812_ Com. Wheel destroyed. 00813_ The unstable cave ceiling collapses. 00813_ D-53 Grenadier suffers critical hit (Burn). 00814_ The unstable cave ceiling collapses. 00814_ U-05 Engineer builds a Wall. 00815_ The unstable cave ceiling collapses. 00815_ K-01 Serf collects debris. 00816_ Destroyed Shock Absorption System. Map ----- +----------------------------------------------------+ | ???????????????? ????????????????????????? | | ???????????????# ????????????????????????? | | ???????????????# #???????????????????????? | | ???????????????# #???????????????????????? | | ???????????????# #???????????????????????? | | ???????????????# #???????????????????????? | | ???????????????# #??####?????????????????? | | ??????????????## #### #?????????????????? | | ?????????????## = #?????????????????? | | ????????????## *% #?????????????????? | | ????????????# [%[ #?????????????????? | | ????????????# #?????????????????? | | ????????????# ## ##?????????????????? | | ????????????# ?### ###??????????????????? | | ????????????# ???#%#?????###????????????? | | ???????????? ???# #????# ##???????????? | | ???????????######## #???? ##??????????? | | ??????????????# #???# ##?????????? | | ??????????????# ###%#???# ##????????? | | ??????????????????#%##### ##???????? | | ??????????????????# # # ##??????? | | ??????????????????### ###????? | | ???????????????????# ##???? | | ??????????????????## ????? | | ?????????????????## # """ #???? | | ??????????# @ d r< #???? | | ??????????# #???? | | ??????????# ### k % #??? | | ??????????? ???????## # ##u #?? | | ?????????????????????## #? #?? | | ??????????????????????## # #??? ??? | | ???????????????????????# ## #??????? | | ??????????????????????? ##??# #??????? | | ??????????????????????? ##???? ?????? | | ??????????????????????? #?????? # ????? | | ??????????????????????? ??????? ? ????? | | ??????????????????????# ???????? ?????? | | ??????????????????????# ??????????????? | | ??????????????????????## ??????????????? | | ????????????????????????###??????????????? | | ?????????????????????????????????????????? | | ?????????????????????????????????????????? | | ?????????????????????????????????????????? | | ?????????????????????????????????????????? | | ?????????????????????????????????????????? | | ?????????????????????????????????????????? | | ?????????????????????????????????????????? | | | | | | | +----------------------------------------------------+ Best States ------------- Heat Dissipation 39 Energy Generation 10 Energy Capacity 250 Matter Stores 300 Matter Capacity 300 Sight Range 16 Terrain Scan Density 10 Evasion (%) 40 Recoil Reduction 2 Item Schematics ----------------- None Robot Schematics ------------------ M-13 Machinist | -10/Materials | Hacked O-16 Technician | -10/Materials | Hacked Fabricated ------------ Nothing Alien Tech Used ----------------- None Achievements -------------- None Challenges ------------ None Game ------ Seed ThrowingSwarmCannon Manual? 0 Play Time 00:06:43 Cumulative 357.3 hours Start 2023.09.23 @ 11:55:29 End 2023.09.23 @ 12:00:54 Sessions 1 Manual Loads 0 Difficulty Rogue Special Mode None Game No. 225 Rogue 222 Adventurer 3 Explorer 0 Win Type - Total 7 Types 6/0/1/0/0/0/0/0/0 Lore% 69 Gallery% 75 Achievement% 66 Wizard Run 0 Options --------- ASCII 0 Keyboard 0 Movement Numpad Keybinds 0 Fullscreen 1 Font 18/SmallcapsGlow Map View 76x50 Tactical HUD 1 Map Filters NONE Filters NONE Steam 1 RUN: b71494df-fbf7-402e-8772-9aaf26547000